Workbook

Sheet Rates and Allowances (hidden)
A1: Income Tax
A2: Personal Allowance (1) | B2: 12570 | L2: Suicide Code
A3: Income limit for Personal Allowance | B3: 100000 | L3: 2024-04-05
A4: Personal Allowance for people aged 65-74 (1)(2) | B4: =B2 -> 12570 | C4: =B4-B2 -> 0 | E4: =(C4*2)+B5 -> 26100 | F4: No longer used | L4: =TODAY() -> 2024-01-05
A5: Income limit for age-related allowances | B5: 26100 | F5: No longer used
A7: (1) From the 2010-11 tax year the Personal Allowance reduces where the income is above £100, 000 - by £1 for every £2 of income above the £100,000 limit. This reduction applies irrespective of age.
A8: (2) These allowances reduce where the income is above the income limit for age - related allowances - by £1 for every £2 of income above the limit. From the 2010-11 tax year the Personal Allowance
A9: for people aged over 65 can be reduced below the basic Personal Allowance where the income is above £100,000.
A11: Income Tax rates and taxable bands | O11: SRIT Bands
A12: Rate | B12: Rate applicable | C12: Applicable limits | I12: SRIT | J12: UKIT | K12: Scot Limit | L12: UK Limit
A13: Starter rate | B13: =IF(Summary!$F$5="Yes",I13,J13) -> 0 | C13: 0 | D13: to | E13: =IF(Summary!$F$5="Yes",K13,L13) -> 0 | I13: 0.19 | J13: 0 | K13: 2162 | L13: 0 | O13: =B2+K13 -> 14732
A14: Basic rate | B14: =IF(Summary!$F$5="Yes",I14,J14) -> 0.2 | C14: =E13 -> 0 | D14: to | E14: =IF(Summary!$F$5="Yes",K14,L14)+E13 -> 37700 | I14: 0.2 | J14: 0.2 | K14: 10956 | L14: 37700 | O14: =O13+K14 -> 25688
A15: Intermediate rate | B15: =IF(Summary!$F$5="Yes",I15,J15) -> 0 | C15: =E14 -> 37700 | D15: to | E15: =IF(Summary!$F$5="Yes",K15,L15)+E14 -> 37700 | I15: 0.21 | J15: 0 | K15: 17974 | L15: 0 | O15: =O14+K15 -> 43662
A16: Higher rate | B16: =IF(Summary!$F$5="Yes",I16,J16) -> 0.4 | C16: =E15 -> 37700 | D16: to | E16: =IF(Summary!$F$5="Yes",K16,L16) -> 125140 | I16: 0.42 | J16: 0.4 | K16: 125140 | L16: 125140
A17: Additional rate | B17: =IF(Summary!$F$5="Yes",I17,J17) -> 0.45 | C17: Over | E17: =E16 -> 125140 | I17: 0.47 | J17: 0.45
A19: Dividends
A20: Ordinary Rate | B20: 0.1
A21: Higher Rate | B21: 0.325
A22: Additional Rate | B22: 0.425
A24: Corporation Tax
A25: Standard Fraction for Marginal Relief | B25: 3/200 | C25: =3/200 -> 0.015
A26: Small Compnaies Rate:
A27: Limit | B27: 300000
A28: Rate | B28: 0.2
A30: Main Rate:
A31: Limit | B31: 1500000
A32: Rate | B32: 0.26
A35: National Insurance
A36: £ per week | B36: £ per week | C36: £ annually
A37: Upper earnings limit, primary Class 1 | B37: 967 | C37: 50270
A38: Primary threshold | B38: 190 | C38: 12570 | E38: =C37-C38 -> 37700
A39: Secondary threshold | B39: 175 | C39: 9100
A40: Employees’ primary Class 1 rate between primary threshold and upper earnings limit | B40: 0.115
A41: Employees’ primary Class 1 rate above upper earnings limit | B41: 0.02
A42: Employers’ secondary Class 1 rate above secondary threshold | B42: 0.138
I45: 31092
I46: 12726 | J46: =I45-I46 -> 18366
I47: 2097
I48: =I45-I46-I47 -> 16269

Sheet Summary
D1: Salary Sacrifice Calculator built by M&G | K1: Tax Year 2023/24
T2: Same Pension - Increased Take home Pay
C3: Please enter the calculation to perform | F3: Specified Sacrifice Amount | L3: Pre Sacrifice | N3: Post Sacrifice | P3: Change | T3: Increased Pension - Same Take Home Pay
K4: Employee | T4: Specified Sacrifice Amount
C5: Scottish Tax Payer? | F5: No | K5: Salary | L5: =F9 -> 0 | N5: ='Workings(Inc Tax)'!L3 -> 0 | P5: =N5-L5 -> 0
K6: Less Income Tax | L6: =Workings!E29 -> 0 | N6: =Workings!J29 -> 0 | P6: =N6-L6 -> 0
C7: Pre sacrifice position | K7: Less National Insurance (Class 1) | L7: =Workings!E43 -> 0 | N7: =Workings!J43 -> 0 | P7: =N7-L7 -> 0
K8: Salary after tax and NI | L8: =L5-L6-L7 -> 0 | N8: =N5-N6-N7 -> 0 | P8: =N8-L8 -> 0
C9: Salary | F9: 0 | K9: Less Contributions paid net | L9: =F11*(1-'Rates and Allowances'!B14) -> 0 | N9: 0 | P9: 0
K10: Take Home Pay | L10: =L8-L9 -> 0 | N10: =N8-N9 -> 0 | P10: =N10-L10 -> 0 | T10: =P10 -> 0 | X10: Take Home Pay | Y10: =P10 -> 0 | Z10: TAX
C11: Gross value of individual Relief at Source contributions | F11: 0 | X11: Pension Pot | Y11: =P12 -> 0 | Z11: =N5 -> 0
K12: Pension Pot | L12: =F11+F13 -> 0 | N12: ='Workings(Inc Tax)'!R22 -> 0 | P12: =N12-L12 -> 0 | T12: =P12 -> 0 | X12: Employer costs | Y12: =P19 -> 0 | Z12: 11850 | AA12: 0 | AB12: =AA12*Z12 -> 0
C13: Employer Pension Contributions | F13: 0 | Z13: =MIN(2000,(Z11-Z12)) -> -11850 | AA13: 0.19 | AB13: =AA13*Z13 -> -2251.5
K14: Employer | Z14: =MIN(10150,(Z11-Z12-Z13)) -> 0 | AA14: 0.2 | AB14: =AA14*Z14 -> 0
C15: Percentage of Employer NI to be given up | F15: 0 | V15: =IF(T4=F3,F17,0) -> 0 | Z15: =MIN(19430,(Z11-Z12-Z13-Z14)) -> 0 | AA15: 0.21 | AB15: =AA15*Z15 -> 0
K16: Employer Pension Contribution | L16: =F13 -> 0 | N16: ='Workings(Inc Tax)'!R22 -> 0 | P16: =N16-L16 -> 0 | T16: =F3 -> Specified Sacrifice Amount | U16: Pens right? | V16: Take Home right? | Z16: =MIN(56570,(Z11-Z12-Z13-Z14-Z15)) -> 0 | AA16: 0.41 | AB16: =AA16*Z16 -> 0
C17: Change to salary - Please not this will also assign any pre-existing personal pension contributions to salary sacrifice | F17: 0 | K17: Plus Salary Paid | L17: =F9 -> 0 | N17: =N5 -> 0 | P17: =N17-L17 -> 0 | S17: SPITHP | T17: =IF(T16=T2,1,0) -> 0 | U17: =IF(AND(T17=1,P12<>0),1,0) -> 0 | V17: =IF(AND(T17=1,P10<=0),1,0) -> 0 | AA17: 0.46
K18: Plus Employers National Insurance (Class 1) | L18: =Workings!E48 -> 0 | N18: =Workings!J48 -> 0 | P18: =N18-L18 -> 0 | S18: IPSTHP | T18: =IF(T16=T3,1,0) -> 0 | U18: =IF(AND(T18=1,P12<=0),1,0) -> 0 | V18: =IF(AND(T18=1,P10<>0),1,0) -> 0 | AB18: =SUM(AB12:AB17) -> -2251.5 | AC18: =N6-AB18 -> 2251.5
C19: =IF(V19>0,"The salary sacrifice is innefective owing to the levels of income and pension contributions","") ->  | K19: Cost to employer | L19: =SUM(L16:L18) -> 0 | N19: =SUM(N16:N18) -> 0 | P19: =N19-L19 -> 0 | V19: =SUM(U17:V18) -> 0 | Z19: NI
Z21: =N5 -> 0
C22: This calculator is designed to demonstrate the impact on income tax, national insurance and pension provision where exchanging salary for an employer's pension contribution. Please note you will need to ensure that the sacrifice does not take the individual below the minimum wage The calculator is only suitable for individuals under state pension age. The above is based on our understanding of current taxation, legislation and HM Revenue & Customs practice all of which is subject to change without notice.The impact of taxation and any other reliefs depends on individual circumstances. Employee National Insurance is using the "Effective Annual Rate" of 11.5%, which factors in the 2% reduction from 6 January 2024 for Primary Class 1 National Insurance. Please note, this tool will cease to operate at the end of the tax year displayed above. Tax legislation states that the personal allowance may be deducted in the way which will result in the greatest reduction in the taxpayer's liability to income tax. The calculator however proceeds on the basis that it is offset firstly against non-savings income, then savings income and then dividend income. In particular circumstances, a different order may produce a more beneficial result for the individual.
Z23: =MIN(8424,(Z21-Z22)) -> 0 | AA23: 0 | AB23: =AA23*Z23 -> 0
Z24: =MIN(37926,(Z21-Z23)) -> 0 | AA24: 0.12 | AB24: =AA24*Z24 -> 0
Z25: =MIN(53650,(Z21-Z23-Z24)) -> 0 | AA25: 0.02 | AB25: =AA25*Z25 -> 0
AB26: =SUM(AB23:AB25) -> 0 | AC26: =N7-AB26 -> 0

Sheet Workings
B1: Salary Sacrifice Calculator built by M&G | I1: =Summary!K1 -> Tax Year 2023/24
B2: Pre Sacrifice | G2: Post Sacrifice
B4: Allowances | G4: Allowances
B5: Adjusted Net Income (for allowance purposes) | D5: =Summary!F9-Summary!F11 -> 0 | G5: =B5 -> Adjusted Net Income (for allowance purposes) | I5: ='Workings(Inc Tax)'!R10 -> 0
N6: KEEP THESE
B7: Personal Allowance | D7: ='Rates and Allowances'!B2 -> 12570 | G7: =B7 -> Personal Allowance | I7: =D7 -> 12570 | L7: =MIN(I7,(I5-'Rates and Allowances'!B3)/2) -> -50000 | N7: =D5-'Rates and Allowances'!B3 -> -100000 | O7: =I5-'Rates and Allowances'!B3 -> -100000
B8: Adjustment | D8: =IF(N7<1,0,(IF(N7>(2*'Rates and Allowances'!B2),-D7,MAX(-D7,N7/-2)))) -> 0 | E8: =SUM(D7:D8) -> 12570 | G8: =B8 -> Adjustment | I8: =IF(O7<1,0,(IF(O7>(2*'Rates and Allowances'!B2),-I7,MAX(-I7,O7/-2)))) -> 0 | J8: =SUM(I7:I8) -> 12570
B10: Additional Age Allowance | D10: =IF(Summary!F7="Under 65",0,'Rates and Allowances'!C4) -> 0 | E10: =D5-'Rates and Allowances'!B5 -> -26100 | G10: =B10 -> Additional Age Allowance | I10: =D10 -> 0 | J10: =I5-'Rates and Allowances'!B5 -> -26100
B11: Adjustment | D11: =IF(E10<0.01,0,MAX(-D10,E10/-2)) -> 0 | E11: =SUM(D10:D11) -> 0 | G11: =B11 -> Adjustment | I11: =IF(J10<0.01,0,MAX(-I10,J10/-2)) -> 0 | J11: =SUM(I10:I11) -> 0
B13: Total Allowance | E13: =E8+E11 -> 12570 | G13: =B13 -> Total Allowance | J13: =J8+J11 -> 12570
B15: Tax Calculation | G15: =B15 -> Tax Calculation
B17: Income | E17: =Summary!F9 -> 0 | G17: =B17 -> Income | J17: =I5 -> 0
B18: Less | G18: =B18 -> Less
B19: Allowance | D19: =Workings!E13 -> 12570 | E19: =SUM(D19:D19) -> 12570 | G19: Allowance | I19: =J13 -> 12570 | J19: =SUM(I19:I19) -> 12570
B20: Taxable Income | E20: =MAX(0,E17-E19) -> 0 | G20: Taxable Income | J20: =MAX(0,J17-J19) -> 0
B23: Income | G23: Income
B24: ='Workings(Inc Tax)'!F7 -> 0 | C24: @ | D24: ='Rates and Allowances'!B13 -> 0 | E24: =B24*D24 -> 0 | G24: ='Workings(Inc Tax)'!L7 -> 0 | H24: @ | I24: =D24 -> 0 | J24: =G24*I24 -> 0
B25: ='Workings(Inc Tax)'!F8 -> 0 | C25: @ | D25: ='Rates and Allowances'!B14 -> 0.2 | E25: =B25*D25 -> 0 | G25: ='Workings(Inc Tax)'!L8 -> 0 | H25: @ | I25: =D25 -> 0.2 | J25: =G25*I25 -> 0
B26: ='Workings(Inc Tax)'!F9 -> 0 | C26: @ | D26: ='Rates and Allowances'!B15 -> 0 | E26: =B26*D26 -> 0 | G26: ='Workings(Inc Tax)'!L9 -> 0 | H26: @ | I26: =D26 -> 0 | J26: =G26*I26 -> 0
B27: ='Workings(Inc Tax)'!F10 -> 0 | C27: @ | D27: ='Rates and Allowances'!B16 -> 0.4 | E27: =B27*D27 -> 0 | G27: ='Workings(Inc Tax)'!L10 -> 0 | H27: @ | I27: =D27 -> 0.4 | J27: =G27*I27 -> 0
B28: ='Workings(Inc Tax)'!F11 -> 0 | C28: @ | D28: ='Rates and Allowances'!B17 -> 0.45 | E28: =B28*D28 -> 0 | G28: ='Workings(Inc Tax)'!L11 -> 0 | H28: @ | I28: =D28 -> 0.45 | J28: =G28*I28 -> 0
B29: Tax to pay | E29: =SUM(E24:E28) -> 0 | G29: Tax to pay | J29: =SUM(J24:J28) -> 0
B32: National Insurance Calculation | G32: =B32 -> National Insurance Calculation
B34: Salary | D34: =Summary!F9 -> 0 | G34: Salary | I34: ='Workings(Inc Tax)'!R10 -> 0
B36: Employee | G36: Employee
C38: Amount | D38: Rate | E38: NI Payable | H38: Amount | I38: Rate | J38: NI Payable
B39: `- to Primary Threshold | C39: =MIN(D34,'Rates and Allowances'!C38) -> 0 | D39: 0 | E39: 0 | G39: `- to Primary Threshold | H39: =MIN(I34,'Rates and Allowances'!C38) -> 0 | I39: 0 | J39: 0
B40: ` - Primary Threshold to Upper Earnings Limit | C40: =IF(D34=0,0,IF(C39+'Rates and Allowances'!E38<Workings!D34,'Rates and Allowances'!E38,Workings!D34-Workings!C39)) -> 0 | D40: ='Rates and Allowances'!B40 -> 0.115 | E40: =C40*D40 -> 0 | G40: ` - Primary Threshold to Upper Earnings Limit | H40: =IF(I34=0,0,IF((H39+'Rates and Allowances'!E38)<Workings!I34,'Rates and Allowances'!E38,Workings!I34-Workings!H39)) -> 0 | I40: =D40 -> 0.115 | J40: =H40*I40 -> 0
B41: `- over Upper Earnings Limit | C41: =MAX(0,D34-'Rates and Allowances'!C37) -> 0 | D41: ='Rates and Allowances'!B41 -> 0.02 | E41: =C41*D41 -> 0 | G41: `- over Upper Earnings Limit | H41: =MAX(0,I34-'Rates and Allowances'!C37) -> 0 | I41: =D41 -> 0.02 | J41: =H41*I41 -> 0
D43: Total | E43: =SUM(E39:E42) -> 0 | I43: Total | J43: =SUM(J39:J42) -> 0
B45: Employer | G45: Employer
C46: Amount | D46: Rate | E46: NI Payable | H46: Amount | I46: Rate | J46: NI Payable
B47: `- to Primary Threshold | C47: =MIN(D34,'Rates and Allowances'!C39) -> 0 | D47: 0 | E47: =C47*D47 -> 0 | G47: `- to Primary Threshold | H47: =MIN(I34,'Rates and Allowances'!C39) -> 0 | I47: 0 | J47: =H47*I47 -> 0
B48: `- over Secondary Threshold | C48: =MAX(D34-'Rates and Allowances'!C39,0) -> 0 | D48: ='Rates and Allowances'!B42 -> 0.138 | E48: =C48*D48 -> 0 | G48: `- over Secondary Threshold | H48: =MAX(I34-'Rates and Allowances'!C39,0) -> 0 | I48: =D48 -> 0.138 | J48: =H48*I48 -> 0

Sheet Workings(Inc Tax) (hidden)
B1: Pre Sacrifice | H1: Post Sacrifice
N2: Logic for Post Salary in L3
B3: Taxable Income | F3: =Summary!F9 -> 0 | H3: Taxable Income | L3: =R10 -> 0
N4: Same Pension - Increased Take home Pay RUK | Q4: =C26 -> 0 | R4: =IF(AND(Summary!$F$5="No",Summary!F3=Summary!T2),'Workings(Inc Tax)'!Q4,0) -> 0
C5: Allowances | D5: Still to tax | E5: Allowance balance | I5: Allowances | J5: Still to tax | K5: Allowance balance | N5: Same Pension - Increased Take home Pay SRIT | Q5: =C26 -> 0 | R5: =IF(AND(Summary!$F$5="Yes",Summary!F3=Summary!T2),'Workings(Inc Tax)'!Q5,0) -> 0
B6: Tax Free | C6: =Workings!E19 -> 12570 | D6: =F3 -> 0 | E6: =MAX(0,C6-F6) -> 12570 | F6: =IF(F3<C6,F3,C6) -> 0 | H6: TaxFree | I6: =Workings!J19 -> 12570 | J6: =L3 -> 0 | K6: =MAX(0,I6-L6) -> 12570 | L6: =IF(L3<I6,L3,I6) -> 0 | N6: Increased Pension - Same Take Home Pay RUK | Q6: =K49 -> 0 | R6: =IF(AND(Summary!$F$5="No",Summary!F3=Summary!T3),'Workings(Inc Tax)'!Q6,0) -> 0
B7: Starter Rate | C7: ='Rates and Allowances'!E13-'Rates and Allowances'!C13 -> 0 | D7: =MAX(D6-F6,0) -> 0 | E7: =MAX(0,C7-F7) -> 0 | F7: =MIN(D7,C7) -> 0 | H7: Starter Rate | I7: ='Rates and Allowances'!E13-'Rates and Allowances'!C13 -> 0 | J7: =MAX(0,J6-L6) -> 0 | K7: =MAX(0,I7-L7) -> 0 | L7: =MIN(J7,I7) -> 0 | N7: Increased Pension - Same Take Home Pay SRIT | Q7: =K71 -> 0 | R7: =IF(AND(Summary!$F$5="Yes",Summary!F3=Summary!T3),'Workings(Inc Tax)'!Q7,0) -> 0
B8: Basic Rate | C8: ='Rates and Allowances'!E14-'Rates and Allowances'!C14+Summary!$F$11 -> 37700 | D8: =MAX(D7-F7,0) -> 0 | E8: =MAX(0,C8-F8) -> 37700 | F8: =MIN(D8,C8) -> 0 | H8: Basic Rate | I8: ='Rates and Allowances'!E14-'Rates and Allowances'!C14+Summary!$F$25 -> 37700 | J8: =MAX(0,J7-L7) -> 0 | K8: =MAX(0,I8-L8) -> 37700 | L8: =MIN(J8,I8) -> 0 | N8: Specified Sacrifice Amount RUK | Q8: =G25 -> 0 | R8: =IF(AND(Summary!$F$5="No",Summary!F3=Summary!T4),'Workings(Inc Tax)'!Q8,0) -> 0
B9: Intermediate Rate | C9: ='Rates and Allowances'!E15-'Rates and Allowances'!C15 -> 0 | D9: =MAX(D8-F8,0) -> 0 | E9: =MAX(0,C9-F9) -> 0 | F9: =MIN(D9,C9) -> 0 | H9: Intermediate Rate | I9: ='Rates and Allowances'!E15-'Rates and Allowances'!C15 -> 0 | J9: =MAX(0,J8-L8) -> 0 | K9: =MAX(0,I9-L9) -> 0 | L9: =MIN(J9,I9) -> 0 | N9: Specified Sacrifice Amount SRIT | Q9: =G25 -> 0 | R9: =IF(AND(Summary!$F$5="Yes",Summary!F3=Summary!T4),'Workings(Inc Tax)'!Q9,0) -> 0
B10: Higher Rate | C10: ='Rates and Allowances'!E16-'Rates and Allowances'!C16 -> 87440 | D10: =MAX(D9-F9,0) -> 0 | E10: =MAX(0,C10-F10) -> 87440 | F10: =MIN(D10,C10) -> 0 | H10: Higher Rate | I10: ='Rates and Allowances'!E16-'Rates and Allowances'!C16 -> 87440 | J10: =MAX(0,J9-L9) -> 0 | K10: =MAX(0,I10-L10) -> 87440 | L10: =MIN(J10,I10) -> 0 | N10: New Salary to Use | R10: =SUM(R4:R9) -> 0
B11: Additional Rate > | C11: ='Rates and Allowances'!E17+Summary!F11 -> 125140 | D11: =MAX(D10-F10,0) -> 0 | E11: 0 | F11: =D11 -> 0 | H11: Additional Rate > | I11: ='Rates and Allowances'!E17+Summary!F26 -> 125140 | J11: =J10-L10 -> 0 | K11: 0 | L11: =J11 -> 0
N14: Logic for Post Pension in XXXX
B15: Same Pension Less Cost | F15: Specified Salary and move existing to sacrifice | I15: Same take home - more pension - employer amounts
I16: RUK | K16: SRIT | N16: Same Pension - Increased Take home Pay RUK | Q16: =C18 -> 0 | R16: =IF(AND(Summary!$F$5="No",Summary!F3=Summary!T2),'Workings(Inc Tax)'!Q16,0) -> 0
F17: Salary Reduction | G17: =Summary!V15 -> 0 | I17: Salary Reduction | J17: =Summary!F9-'Workings(Inc Tax)'!K49 -> 0 | K17: Salary Reduction | L17: =Summary!F9-K71 -> 0 | N17: Same Pension - Increased Take home Pay SRIT | Q17: =C18 -> 0 | R17: =IF(AND(Summary!$F$5="Yes",Summary!F3=Summary!T2),'Workings(Inc Tax)'!Q17,0) -> 0
B18: Pension Reduction | C18: =Summary!F11 -> 0 | F18: Existing Pension | G18: =Summary!F11 -> 0 | I18: Rate | J18: ='Rates and Allowances'!B42 -> 0.138 | K18: Rate | L18: ='Rates and Allowances'!B42 -> 0.138 | N18: Increased Pension - Same Take Home Pay RUK | Q18: =J25 -> 0 | R18: =IF(AND(Summary!$F$5="No",Summary!F3=Summary!T3),'Workings(Inc Tax)'!Q18,0) -> 0
B19: Rate | C19: ='Rates and Allowances'!B42 -> 0.138 | F19: Total Reduction | G19: =G17+G18 -> 0 | I19: NI Saving passed on | J19: =Summary!F15 -> 0 | K19: NI Saving passed on | L19: =Summary!F15 -> 0 | N19: Increased Pension - Same Take Home Pay SRIT | Q19: =L25 -> 0 | R19: =IF(AND(Summary!$F$5="Yes",Summary!F3=Summary!T3),'Workings(Inc Tax)'!Q19,0) -> 0
B20: NI Saving passed on | C20: =Summary!F15 -> 0 | F20: Rate | G20: ='Rates and Allowances'!B42 -> 0.138 | I20: Existing NI x give up | J20: =Summary!L18*'Workings(Inc Tax)'!J19 -> 0 | K20: Existing NI x give up | L20: =Summary!L18*'Workings(Inc Tax)'!L19 -> 0 | N20: Specified Sacrifice Amount RUK | Q20: =G26 -> 0 | R20: =IF(AND(Summary!$F$5="No",Summary!F3=Summary!T4),'Workings(Inc Tax)'!Q20,0) -> 0
B21: Existing NI x give up | C21: =Summary!L18*C20 -> 0 | F21: NI Saving passed on | G21: =Summary!F15 -> 0 | I21: Potential Saving x give up | J21: =J17*(J18*J19) -> 0 | K21: Potential Saving x give up | L21: =L17*(L18*L19) -> 0 | N21: Specified Sacrifice Amount SRIT | Q21: =G26 -> 0 | R21: =IF(AND(Summary!$F$5="Yes",Summary!F3=Summary!T4),'Workings(Inc Tax)'!Q21,0) -> 0
B22: Potential Saving x give up | C22: =(C18*C19)*C20 -> 0 | F22: Existing NI x give up | G22: =Summary!L18*G21 -> 0 | I22: Max Saving | J22: =MIN(J20,J21) -> 0 | K22: Max Saving | L22: =MIN(L20,L21) -> 0 | N22: New Emp Pension to Use | R22: =SUM(R16:R21)+Summary!F13 -> 0
B23: Max Saving | C23: =MIN(C21,C22) -> 0 | F23: Potential Saving | G23: =(G19*G20)*G21 -> 0 | I23: Existing Salary | J23: =Summary!F9 -> 0 | K23: Existing Salary | L23: =Summary!F9 -> 0
B24: Sal Red Factor | C24: =1+(C19*C20) -> 1 | F24: Max Saving | G24: =MIN(G22,G23) -> 0 | I24: New Salary | J24: =K49 -> 0 | K24: New Salary | L24: =K71 -> 0
B25: Salary Reduction | C25: =C18/C24 -> 0 | D25: =Summary!L19-(Summary!L18*'Workings(Inc Tax)'!C20)-Summary!F11 -> 0 | F25: New Salary | G25: =Summary!F9-'Workings(Inc Tax)'!G19 -> 0 | I25: New Emp Pension | J25: =J17+J22 -> 0 | K25: New Emp Pension | L25: =L17+L22 -> 0
B26: New Salary | C26: =IF(C21<C22,D25,Summary!F9-'Workings(Inc Tax)'!C25) -> 0 | F26: New Emp Cont | G26: =G19+G24 -> 0
N27: For Graphs
N28: Take Home Pay | O28: =Summary!P10 -> 0
N29: Pension Pot | O29: =Summary!P12 -> 0
N30: Employer costs | O30: =Summary!P19 -> 0
C33: Salary | D33: =Summary!F9 -> 0
C34: Pension Gross | D34: =Summary!F11 -> 0 | I34: Current Take Home | K34: =Summary!L10 -> 0 | L34: 28146
I35: Current Net Pension cont | K35: =D34*0.8 -> 0
B38: Non SRIT | E38: NI | F38: Tax | H38: Upper Range | J38: Amount in band
B39: 0 | C39: ='Rates and Allowances'!C39 -> 9100 | D39: =C39-B39 -> 9100 | E39: 0 | F39: 0 | G39: =D39*(1-(E39+F39)) -> 9100 | H39: =G39 -> 9100 | I39: =IF(K34<=H39,"Use","Don't Use") -> Use | J39: =IF(I39="use",$K$34,0) -> 0 | K39: =IF(I39="Use",(J39/(1-(E39+F39))+C38),0) -> 0
B40: =C39+0.01 -> 9100.01 | C40: ='Rates and Allowances'!C38 -> 12570 | D40: =C40-B40+0.01 -> 3470 | E40: 0 | F40: 0 | G40: =D40*(1-(E40+F40)) -> 3470 | H40: =H39+G40 -> 12570 | I40: =IF(AND($K$34>H39,$K$34<=H40,$K$34<H41),"use","Don't use") -> Don't use | J40: =IF(I40="use",$K$34-H39,0) -> 0 | K40: =IF(I40="Use",(J40/(1-(E40+F40))+C39),0) -> 0
B41: =C40+0.01 -> 12570.01 | C41: ='Rates and Allowances'!B2 -> 12570 | D41: -2.182785203e-13 | E41: ='Rates and Allowances'!B40 -> 0.115 | F41: 0 | G41: -1.931764904e-13 | H41: =H40+G41 -> 12570 | I41: Don't use | J41: 0 | K41: =IF(I41="Use",(J41/(1-(E41+F41))+C40),0) -> 0
B42: 12570.01 | C42: =C41+'Rates and Allowances'!L14 -> 50270 | D42: 37700 | E42: ='Rates and Allowances'!B40 -> 0.115 | F42: ='Rates and Allowances'!J14 -> 0.2 | G42: 25824.5 | H42: 38394.5 | I42: Don't use | J42: 0 | K42: =IF(I42="Use",(J42/(1-(E42+F42))+C41),0) -> 0
B43: 50270.01 | C43: ='Rates and Allowances'!B3 -> 100000 | D43: 49730 | E43: ='Rates and Allowances'!B41 -> 0.02 | F43: ='Rates and Allowances'!J16 -> 0.4 | G43: 28843.4 | H43: 67237.9 | I43: Don't use | J43: 0 | K43: 0
B44: 100000.01 | C44: =C43+('Rates and Allowances'!B2*2) -> 125140 | D44: 25140 | E44: ='Rates and Allowances'!B41 -> 0.02 | F44: =F43*1.5 -> 0.6 | G44: 9553.2 | H44: 76791.1 | I44: Don't use | J44: 0 | K44: =IF(I44="Use",(J44/(1-(E44+F44))+C43),0) -> 0
B45: 125140.01 | C45: ='Rates and Allowances'!L16 -> 125140 | D45: 5.23868969e-12 | E45: ='Rates and Allowances'!B41 -> 0.02 | F45: ='Rates and Allowances'!J16 -> 0.4 | G45: 3.03844002e-12 | H45: =H44+G45 -> 76791.1 | I45: Don't use | J45: 0 | K45: 0
B46: 125140.01 | C46: 2000000000 | D46: 1999874860 | E46: ='Rates and Allowances'!B41 -> 0.02 | F46: ='Rates and Allowances'!J17 -> 0.45 | G46: 1059933676 | H46: 1060010467 | I46: =IF(K34>H45,"use","Don't use") -> Don't use | J46: 0 | K46: =IF(I46="Use",(J46/(1-(E46+F46))+C45),0) -> 0
J49: New Salary - RUK | K49: =SUM(K39:K46) -> 0
C52: Salary | D52: =D33 -> 0
C53: Pension Gross | D53: =D34 -> 0 | I53: Current Take Home | K53: =Summary!L10 -> 0 | L53: 28146
I54: Current Net Pension cont | K54: =D53*0.8 -> 0
B57: SRIT | E57: NI | F57: Tax | H57: Upper Range | J57: Amount in band
B58: 0 | C58: ='Rates and Allowances'!C39 -> 9100 | D58: =C58-B58 -> 9100 | E58: 0 | F58: 0 | G58: =D58*(1-(E58+F58)) -> 9100 | H58: =G58 -> 9100 | I58: =IF(K53<=H58,"Use","Don't Use") -> Use | J58: =IF(I58="use",$K$34,0) -> 0 | K58: =IF(I58="Use",(J58/(1-(E58+F58))+C57),0) -> 0
B59: =C58+0.01 -> 9100.01 | C59: ='Rates and Allowances'!C38 -> 12570 | D59: =C59-B59+0.01 -> 3470 | E59: 0 | F59: 0 | G59: =D59*(1-(E59+F59)) -> 3470 | H59: =H58+G59 -> 12570 | I59: =IF(AND($K$34>H58,$K$34<=H59,$K$34<H60),"use","Don't use") -> Don't use | J59: =IF(I59="use",$K$34-H58,0) -> 0 | K59: 0
B60: =C59+0.01 -> 12570.01 | C60: 12570 | D60: -2.182785203e-13 | E60: ='Rates and Allowances'!B40 -> 0.115 | F60: 0 | G60: -1.931764904e-13 | H60: =H59+G60 -> 12570 | I60: =IF(AND($K$34>H59,$K$34<=H60,$K$34<H61),"use","Don't use") -> Don't use | J60: =IF(I60="use",$K$34-H59,0) -> 0 | K60: 0
B61: 12570.01 | C61: ='Rates and Allowances'!O13 -> 14732 | D61: 2162 | E61: ='Rates and Allowances'!B40 -> 0.115 | F61: ='Rates and Allowances'!I13 -> 0.19 | G61: 1502.59 | H61: 14072.59 | I61: Don't use | J61: =IF(I61="use",$K$34-H60,0) -> 0 | K61: 0
B62: 14732.01 | C62: ='Rates and Allowances'!O14 -> 25688 | D62: 10956 | E62: ='Rates and Allowances'!B40 -> 0.115 | F62: ='Rates and Allowances'!I14 -> 0.2 | G62: 7504.86 | H62: 21577.45 | I62: Don't use | J62: =IF(I62="use",$K$34-H61,0) -> 0 | K62: 0
B63: 25688.01 | C63: ='Rates and Allowances'!O15 -> 43662 | D63: 17974 | E63: ='Rates and Allowances'!B40 -> 0.115 | F63: ='Rates and Allowances'!I15 -> 0.21 | G63: 12132.45 | H63: 33709.9 | I63: Don't use | J63: 0 | K63: 0
B64: 43662.01 | C64: =C42 -> 50270 | D64: 6608 | E64: ='Rates and Allowances'!B40 -> 0.115 | F64: ='Rates and Allowances'!I16 -> 0.42 | G64: 3072.72 | H64: 36782.62 | I64: Don't use | J64: 0 | K64: 0
B65: 50270.01 | C65: 100000 | D65: 49730 | E65: ='Rates and Allowances'!B41 -> 0.02 | F65: ='Rates and Allowances'!I16 -> 0.42 | G65: 27848.8 | H65: 64631.42 | I65: Don't use | J65: 0 | K65: 0
B66: 100000.01 | C66: =C65+(2*C60) -> 125140 | D66: 25140 | E66: ='Rates and Allowances'!B41 -> 0.02 | F66: =F65*1.5 -> 0.63 | G66: 8799 | H66: 73430.42 | I66: Don't use | J66: =IF(I66="use",$K$34-H65,0) -> 0 | K66: =IF(I66="Use",(J66/(1-(E66+F66))+C65),0) -> 0
B67: 125140.01 | C67: 150000 | D67: 24860 | E67: ='Rates and Allowances'!B41 -> 0.02 | F67: ='Rates and Allowances'!I16 -> 0.42 | G67: 13921.6 | H67: =H66+G67 -> 87352.02 | I67: Don't use | J67: =IF(I67="use",$K$34-H66,0) -> 0 | K67: 0
B68: 150000.01 | C68: 2000000000 | D68: 1999850000 | E68: ='Rates and Allowances'!B41 -> 0.02 | F68: ='Rates and Allowances'!I17 -> 0.47 | G68: 1019923500 | H68: =H67+G68 -> 1020010852 | I68: =IF(K47>H67,"use","Don't use") -> Don't use | J68: =IF(I68="use",$K$34-H67,0) -> 0 | K68: 0
J71: New Salary - SRIT | K71: =SUM(K58:K68) -> 0
